bitfinex/quotes_BTCUSD_20241013
["timestamp","ask_amount","ask_price","bid_price","bid_amount"]
[1728834589554,0.000818,62397.0,62396.0,1.32775177]
[1728834589794,0.000818,62397.0,62396.0,1.22272178]
[1728834591875,0.000818,62397.0,62396.0,1.0126618]
[1728834592077,0.000818,62397.0,62396.0,1.22272178]
[1728834593295,0.000818,62397.0,62396.0,0.96312178]
[1728834596481,0.000818,62397.0,62396.0,1.06815177]
[1728834596908,0.000818,62397.0,62396.0,1.25585177]
[1728834597130,0.000818,62397.0,62396.0,1.33285177]
[1728834597779,0.000818,62397.0,62396.0,1.22782178]
[1728834597992,0.000818,62397.0,62396.0,1.33315428]
[1728834598633,0.000818,62397.0,62396.0,1.54607471]
[1728834598853,0.000818,62397.0,62396.0,1.33315428]
[1728834600808,0.0005,62399.0,62398.0,0.299491]
[1728834601023,0.0005,62399.0,62398.0,0.71117941]
[1728834602132,0.0005,62399.0,62398.0,0.72517941]
[1728834604556,0.0005,62399.0,62398.0,0.71117941]
[1728834604793,0.0005,62399.0,62398.0,0.93523939]
[1728834605217,0.0005,62399.0,62398.0,0.92123939]
[1728834605645,0.0005,62399.0,62398.0,0.9211383]
[1728834606706,0.0005,62399.0,62398.0,0.9351383]
[1728834607132,0.0005,62399.0,62398.0,0.95110324]
[1728834607349,0.0005,62399.0,62398.0,0.74104326]
[1728834607561,0.0005,62399.0,62398.0,0.71604326]
[1728834607768,0.0005,62399.0,62398.0,0.82107325]
[1728834608004,0.0005,62399.0,62398.0,0.71607583]
[1728834608217,0.0005,62399.0,62398.0,0.80710582]
[1728834608434,0.2753,62399.0,62398.0,0.43173411]
[1728834608650,0.2753,62399.0,62398.0,0.48870994]
[1728834609290,0.2753,62399.0,62398.0,0.64179409]
[1728834609504,0.2753,62399.0,62398.0,0.67281862]
[1728834609763,0.0005,62399.0,62398.0,0.91420798]
[1728834610021,0.0005,62399.0,62398.0,0.95120798]
[1728834610442,0.0005,62399.0,62398.0,0.93720798]
[1728834610867,0.0005,62399.0,62398.0,0.95120798]
[1728834615083,0.2788,62399.0,62398.0,0.84417799]
[1728834615954,0.2788,62399.0,62398.0,0.611148]
[1728834616187,0.2788,62399.0,62398.0,0.36771501]
[1728834616402,0.2788,62399.0,62398.0,0.43982542]
[1728834616615,0.2788,62399.0,62398.0,0.36771501]
[1728834616831,0.2788,62399.0,62398.0,0.20745401]
[1728834617051,0.439058,62399.0,62398.0,0.04623]
[1728834617274,0.439058,62399.0,62398.0,0.014]
[1728834618845,0.439058,62399.0,62396.0,0.001636]
[1728834618846,0.2788,62399.0,62396.0,0.001636]
[1728834619055,0.2788,62399.0,62396.0,0.024636]
[1728834619056,0.434264,62397.0,62396.0,0.024636]
[1728834620116,0.434264,62397.0,62396.0,0.038636]
[1728834620567,0.434264,62397.0,62396.0,0.024636]
[1728834620777,0.434264,62397.0,62396.0,0.038636]
[1728834624008,0.274,62397.0,62396.0,0.198902]
[1728834624220,0.274,62397.0,62396.0,0.038636]
[1728834624425,0.0795,62397.0,62396.0,0.36012601]
[1728834625053,0.0795,62397.0,62396.0,0.19986001]
[1728834627067,0.239764,62397.0,62396.0,0.038636]
[1728834627950,0.434264,62397.0,62396.0,0.038636]
[1728834628845,0.434264,62397.0,62396.0,0.015636]
[1728834630940,0.274,62397.0,62396.0,0.038636]
[1728834631153,0.434264,62397.0,62396.0,0.038636]
[1728834631629,0.274,62397.0,62396.0,0.038636]
[1728834632040,0.434264,62397.0,62396.0,0.038636]
[1728834632265,0.274,62397.0,62396.0,0.038636]
[1728834634469,0.434264,62397.0,62396.0,0.038636]
[1728834635995,0.434264,62397.0,62396.0,0.015636]
[1728834637429,0.434264,62397.0,62396.0,0.165636]
[1728834645156,0.435082,62397.0,62396.0,0.165636]
[1728834652786,0.46018114,62397.0,62396.0,0.165636]
[1728834659703,0.435082,62397.0,62396.0,0.165636]
[1728834659924,0.58501823,62397.0,62396.0,0.165636]
[1728834660143,0.540082,62397.0,62396.0,0.165636]
[1728834660353,0.59002365,62397.0,62396.0,0.165636]
[1728834660576,0.005,62394.0,62393.0,0.001636]
[1728834660796,0.74090026,62394.0,62393.0,0.001636]
[1728834661010,0.78783649,62394.0,62393.0,0.001636]
[1728834661244,0.81481274,62394.0,62393.0,0.001636]
[1728834661463,1.20260396,62394.0,62393.0,1e-06]
[1728834661680,1.10672065,62394.0,62393.0,1e-06]
[1728834661908,0.70187974,62390.0,62389.0,1e-06]
[1728834662121,0.77179901,62390.0,62389.0,1e-06]
[1728834662331,0.69987974,62390.0,62389.0,1e-06]
[1728834662582,1.11412482,62390.0,62389.0,1e-06]
[1728834662792,0.96023837,62390.0,62389.0,1e-06]
[1728834663002,0.97756814,62390.0,62389.0,1e-06]
[1728834663218,0.59871121,62390.0,62389.0,1e-06]
[1728834663435,0.55078921,62390.0,62389.0,1e-06]
[1728834664157,0.55778921,62390.0,62389.0,0.001001]
[1728834664675,0.55078921,62390.0,62389.0,1e-06]
[1728834665105,0.63616745,62390.0,62389.0,1e-06]
[1728834666000,0.63816745,62390.0,62389.0,1e-06]
[1728834666750,0.63616745,62390.0,62389.0,1e-06]
[1728834666996,0.80636519,62390.0,62389.0,1e-06]
[1728834669928,0.78125798,62390.0,62389.0,1e-06]
[1728834671147,0.69587974,62390.0,62389.0,1e-06]
[1728834672901,0.72098476,62390.0,62389.0,1e-06]
[1728834673649,0.55178702,62390.0,62389.0,1e-06]
[1728834678575,0.72598476,62390.0,62389.0,1e-06]
[1728834679261,0.72498476,62390.0,62389.0,1e-06]
[1728834679479,0.79681135,62390.0,62389.0,1e-06]
[1728834679692,0.86524945,62390.0,62389.0,1e-06]
[1728834680333,0.93707604,62390.0,62389.0,1e-06]
[1728834680543,0.86324945,62390.0,62389.0,1e-06]
[1728834680752,0.86206845,62390.0,62389.0,1e-06]
[1728834680963,0.86406845,62390.0,62389.0,1e-06]
[1728834681201,0.93587464,62390.0,62389.0,1e-06]
[1728834681421,0.93387464,62390.0,62389.0,1e-06]
[1728834681676,0.86206845,62390.0,62389.0,1e-06]
[1728834681885,0.90993611,62390.0,62389.0,1e-06]
[1728834682132,0.90993545,62390.0,62389.0,1e-06]
[1728834682360,0.77467049,62390.0,62389.0,1e-06]
[1728834682575,0.70287071,62390.0,62389.0,1e-06]
[1728834682785,0.7279781,62390.0,62389.0,1e-06]
[1728834684064,0.84971411,62390.0,62389.0,1e-06]
[1728834684302,1.00942483,62390.0,62389.0,1e-06]
[1728834684512,0.88975853,62390.0,62389.0,1e-06]
[1728834686208,0.005,62379.0,62378.0,0.24042122]
[1728834686428,0.87640548,62379.0,62378.0,0.24042122]
[1728834686662,0.165325,62373.0,62371.0,0.24042122]
[1728834686908,0.70522274,62373.0,62371.0,0.24042122]
[1728834687131,0.86659245,62373.0,62359.0,0.0806]
[1728834687998,0.70522274,62373.0,62359.0,0.0806]
[1728834689135,0.537025,62373.0,62372.0,0.011634]
[1728834689578,0.536025,62373.0,62372.0,0.001634]
[1728834690022,0.70522274,62373.0,62372.0,0.001634]
[1728834690246,0.86659245,62373.0,62372.0,0.001634]
[1728834690464,0.86759245,62373.0,62372.0,0.001634]
[1728834690900,0.005,62361.0,62343.0,0.064278]
[1728834691140,0.005,62361.0,62340.0,0.24042122]
[1728834691141,0.160382,62351.0,62348.0,0.0075]
[1728834692565,0.160382,62351.0,62350.0,0.010636]
[1728834693050,0.160382,62351.0,62350.0,0.001636]
[1728834693567,0.161382,62351.0,62350.0,0.010636]
[1728834697644,0.161382,62351.0,62350.0,0.306136]
[1728834700359,0.001,62351.0,62350.0,0.306136]
[1728834702142,0.161382,62351.0,62350.0,0.306136]
[1728834719206,0.161382,62351.0,62350.0,0.115636]
[1728834719436,0.161382,62351.0,62350.0,0.04568401]
[1728834719889,0.161382,62351.0,62350.0,0.15091612]
[1728834727119,0.161382,62351.0,62350.0,0.13886811]
[1728834727753,0.161382,62351.0,62350.0,0.15091925]
[1728834731166,0.161382,62351.0,62350.0,0.04568714]
[1728834731824,0.161382,62351.0,62350.0,0.02268714]
[1728834732041,0.161382,62351.0,62350.0,0.010636]
[1728834733345,0.161382,62351.0,62350.0,0.04568864]
[1728834734029,0.001,62351.0,62350.0,0.04568864]
[1728834734242,0.161382,62351.0,62350.0,0.04568864]
[1728834734694,0.001,62351.0,62350.0,0.04568864]
[1728834734910,0.001,62351.0,62350.0,0.50665876]
[1728834735127,0.001,62351.0,62350.0,0.82056175]
[1728834735343,0.001,62351.0,62350.0,0.92579386]
[1728834735760,0.001,62351.0,62350.0,0.82056175]
[1728834735967,0.24042122,62362.0,62354.0,0.023]
[1728834736186,0.160359,62361.0,62360.0,0.10523211]
[1728834736409,0.160359,62361.0,62360.0,0.14028475]
[1728834737894,0.160359,62361.0,62360.0,0.20422401]
[1728834738107,0.160359,62361.0,62360.0,0.19217137]
[1728834738315,0.160359,62361.0,62360.0,0.20419948]
[1728834738764,0.160359,62361.0,62360.0,0.21619948]
[1728834739433,0.160359,62361.0,62360.0,0.20417137]
[1728834740290,0.160359,62361.0,62360.0,0.21619948]
[1728834740495,0.160359,62361.0,62360.0,0.20417137]
[1728834741127,0.160359,62361.0,62360.0,0.21619948]
[1728834741339,0.160359,62361.0,62360.0,0.20417137]
[1728834744536,0.160355,62362.0,62361.0,0.023]
[1728834745975,0.161355,62362.0,62361.0,0.036]
[1728834748332,0.001,62362.0,62361.0,0.35958001]
[1728834748531,0.001,62362.0,62361.0,0.35758001]
[1728834748660,0.001,62362.0,62361.0,0.37159222]
[1728834749106,0.001,62362.0,62361.0,0.63439222]
[1728834749481,0.001,62362.0,62361.0,0.63239222]
[1728834750313,0.000819,62367.0,62365.0,0.023]
[1728834750535,0.000819,62367.0,62366.0,0.16917137]
[1728834750742,0.000819,62367.0,62366.0,0.19217137]
[1728834750743,0.16116,62367.0,62366.0,0.19217137]
[1728834750990,0.000819,62367.0,62366.0,0.19217137]
[1728834751917,0.16116,62367.0,62366.0,0.19217137]
[1728834753505,0.16116,62367.0,62366.0,0.20617137]
[1728834759785,0.16116,62367.0,62366.0,0.14217116]
[1728834763360,0.16116,62367.0,62366.0,0.15417537]
[1728834763574,0.16116,62367.0,62366.0,0.14217116]
[1728834766822,0.000819,62367.0,62366.0,0.14217116]
[1728834767047,0.000819,62367.0,62366.0,0.37981416]
[1728834767277,0.000819,62367.0,62366.0,0.21947116]
[1728834768542,0.16116,62367.0,62366.0,0.21947116]
[1728834768790,0.000819,62367.0,62366.0,0.21947116]
[1728834769901,0.000819,62367.0,62366.0,0.54103817]
[1728834770115,0.000819,62367.0,62366.0,0.43586701]
[1728834770547,0.24042122,62380.0,62377.0,0.0773]
[1728834770757,0.24042122,62380.0,62379.0,0.12817116]
[1728834771194,0.160307,62380.0,62379.0,0.12817116]
[1728834773823,0.160307,62380.0,62379.0,0.13717116]
[1728834781744,0.160307,62380.0,62379.0,0.032]
[1728834781953,0.240407,62380.0,62379.0,0.032]
[1728834782344,0.240407,62380.0,62379.0,0.009]
[1728834783678,0.241225,62380.0,62379.0,0.009]
[1728834785436,0.161125,62380.0,62379.0,0.11417116]
[1728834787350,0.161125,62380.0,62379.0,0.13717116]
[1728834787568,0.000818,62380.0,62379.0,0.40265232]
[1728834787812,0.000818,62380.0,62379.0,0.63977633]
[1728834788042,0.000818,62380.0,62379.0,0.59844472]
[1728834789097,0.000818,62380.0,62379.0,0.58944472]
[1728834789517,0.000818,62380.0,62379.0,0.60244472]
[1728834791085,0.000818,62380.0,62379.0,0.79744472]
[1728834791707,0.000818,62380.0,62379.0,0.84746525]
[1728834792175,0.000818,62380.0,62379.0,0.83446525]
[1728834792384,0.000818,62380.0,62379.0,0.78644472]
[1728834792590,0.000818,62380.0,62379.0,0.84744523]
[1728834793000,0.000818,62380.0,62379.0,0.83444523]
[1728834793470,0.000818,62380.0,62379.0,0.80044472]
[1728834793681,0.000819,62390.0,62389.0,0.32929471]
[1728834793929,0.000819,62390.0,62389.0,0.51351872]
[1728834796333,0.000819,62390.0,62389.0,0.52751872]
[1728834800890,0.161101,62390.0,62389.0,0.037]
[1728834805532,0.440101,62390.0,62389.0,0.014]
[1728834807987,0.160305,62381.0,62380.0,0.001636]
[1728834808195,0.160305,62381.0,62380.0,0.024636]
[1728834809284,0.160305,62381.0,62380.0,0.035636]
[1728834811498,0.239605,62381.0,62380.0,0.035636]
[1728834811928,0.239605,62381.0,62380.0,0.012636]
[1728834813255,0.435605,62381.0,62380.0,0.012636]
[1728834820289,0.436423,62381.0,62380.0,0.012636]
[1728834820942,0.161123,62381.0,62380.0,0.012636]
[1728834821169,0.161123,62381.0,62380.0,0.035636]
[1728834840659,0.161123,62381.0,62380.0,0.0476801]
[1728834840860,0.000818,62381.0,62380.0,0.6171242]
[1728834841026,0.000818,62381.0,62380.0,0.6512542]
[1728834841231,0.000818,62381.0,62380.0,0.8410542]
[1728834841878,0.000818,62381.0,62380.0,0.8320542]
[1728834842080,0.000818,62381.0,62380.0,0.8300542]
[1728834842295,0.000818,62381.0,62380.0,0.8440542]
[1728834842765,0.000818,62381.0,62380.0,0.88019154]
[1728834842979,0.000818,62381.0,62380.0,0.89419154]
[1728834843191,0.000818,62381.0,62380.0,0.8440542]
[1728834843835,0.000818,62381.0,62380.0,0.67492362]
[1728834845551,0.000818,62381.0,62380.0,0.66092362]
[1728834846397,0.000818,62381.0,62380.0,0.66091761]
[1728834848348,0.000818,62381.0,62380.0,0.8300307]
[1728834851124,0.000818,62381.0,62380.0,0.8180101]
[1728834851328,0.000818,62381.0,62380.0,0.83002734]
[1728834855227,0.000818,62381.0,62380.0,0.84402734]
[1728834855463,0.000818,62381.0,62380.0,0.41312034]
[1728834855678,0.000818,62381.0,62380.0,0.57342734]
[1728834855883,0.000818,62381.0,62380.0,0.5094139]
[1728834856491,0.000818,62381.0,62380.0,0.4954139]
[1728834856905,0.000818,62381.0,62380.0,0.5094139]
[1728834857323,0.000818,62381.0,62380.0,0.4954139]
[1728834857736,0.000818,62381.0,62380.0,0.5094139]
[1728834858157,0.000818,62381.0,62380.0,0.3491069]
[1728834859596,0.000818,62381.0,62380.0,0.5094139]
[1728834862528,0.000818,62381.0,62380.0,0.50941636]
[1728834862669,0.000818,62381.0,62380.0,0.61451601]
[1728834863320,0.000818,62381.0,62380.0,0.89261601]
[1728834863500,0.000818,62381.0,62380.0,0.56816882]
[1728834863696,0.000818,62381.0,62380.0,0.89061601]
[1728834866384,0.000818,62381.0,62380.0,1.15412982]
[1728834866641,0.000818,62381.0,62380.0,1.05799647]
[1728834866866,0.000818,62381.0,62380.0,1.07002264]
[1728834867499,0.000818,62381.0,62380.0,1.12010218]
[1728834867702,0.000818,62381.0,62380.0,1.21621577]
[1728834870068,0.000818,62381.0,62380.0,1.12010218]
[1728834870548,0.000818,62381.0,62380.0,1.21621577]
[1728834871520,0.000818,62381.0,62380.0,1.21618736]
[1728834872255,0.000818,62381.0,62380.0,1.10805653]
[1728834872500,0.000818,62381.0,62380.0,1.12009053]
[1728834872981,0.000819,62390.0,62389.0,0.183284]
[1728834873218,0.000819,62390.0,62389.0,0.46164166]
[1728834873658,0.000819,62390.0,62389.0,0.46364166]
[1728834873881,0.000819,62390.0,62389.0,0.45160766]
[1728834874103,0.000819,62390.0,62389.0,0.44960766]
[1728834874328,0.000819,62390.0,62389.0,0.46360766]
[1728834876010,0.000819,62390.0,62389.0,0.47564086]
[1728834876224,0.000819,62390.0,62389.0,0.31535686]
[1728834877087,0.000819,62390.0,62389.0,0.21025721]
[1728834877301,0.000819,62390.0,62389.0,0.30332366]
[1728834877515,0.000819,62390.0,62389.0,0.31535682]
[1728834877746,0.000819,62390.0,62389.0,0.46360766]
[1728834877956,0.000819,62390.0,62389.0,0.47564082]
[1728834881720,0.000819,62390.0,62389.0,0.47563512]
[1728834885280,0.000819,62390.0,62389.0,0.47563378]
[1728834885503,0.000819,62390.0,62389.0,0.04902612]
[1728834885726,0.000819,62390.0,62389.0,0.15412577]
[1728834885727,0.161101,62390.0,62389.0,0.15412577]
[1728834889344,0.000819,62390.0,62389.0,0.15412577]
[1728834892801,0.000819,62390.0,62389.0,0.15413187]
[1728834894036,0.000819,62390.0,62389.0,0.15413305]
[1728834894544,0.000819,62390.0,62389.0,0.36251957]
[1728834894784,0.000819,62390.0,62389.0,0.20223557]
[1728834895017,0.000819,62390.0,62389.0,0.36251957]
[1728834895261,0.000819,62390.0,62389.0,0.20223557]
[1728834895986,0.000819,62390.0,62389.0,0.19020217]
[1728834896238,0.000819,62390.0,62389.0,0.20223863]
[1728834896726,0.000819,62390.0,62389.0,0.04903646]
[1728834896727,0.161101,62390.0,62389.0,0.04903646]
[1728834897211,0.000819,62390.0,62389.0,0.04903646]
[1728834900918,0.000819,62390.0,62389.0,0.08116646]
[1728834901124,0.000819,62390.0,62389.0,0.24145046]
[1728834901557,0.000819,62390.0,62389.0,0.22745046]
[1728834901990,0.000819,62390.0,62389.0,0.24145046]
[1728834902203,0.000819,62390.0,62389.0,0.06913]
[1728834902427,0.434101,62390.0,62389.0,0.06716975]
[1728834902655,0.434101,62390.0,62389.0,0.04416975]
[1728834902901,0.434101,62390.0,62389.0,0.04613]
[1728834903113,0.434101,62390.0,62389.0,0.014]
[1728834903785,0.434101,62390.0,62389.0,0.11909965]
[1728834904256,0.434101,62390.0,62389.0,0.12809965]
[1728834904474,0.000819,62390.0,62389.0,0.30041306]
[1728834904703,0.000819,62390.0,62389.0,0.20931341]
[1728834904922,0.000819,62390.0,62389.0,0.25741593]
[1728834905137,0.000819,62390.0,62389.0,0.24341593]
[1728834905360,0.000819,62390.0,62389.0,0.25741593]
[1728834906015,0.000819,62390.0,62389.0,0.20931341]
[1728834906234,0.000819,62390.0,62389.0,0.25741593]
[1728834908451,0.000819,62390.0,62389.0,0.41863994]
[1728834909584,0.000819,62390.0,62389.0,0.52373918]
[1728834911130,0.000819,62390.0,62389.0,0.47563666]
[1728834911369,0.000819,62390.0,62389.0,0.52375856]
[1728834912042,0.000819,62390.0,62389.0,0.52376163]
[1728834912460,0.002819,62390.0,62389.0,0.52376163]
[1728834912698,0.002819,62390.0,62389.0,0.41866198]
[1728834912918,0.002819,62390.0,62389.0,0.25837798]
[1728834913143,0.002819,62390.0,62389.0,0.21025301]
[1728834913359,0.002819,62390.0,62389.0,0.21025348]
[1728834913789,0.002819,62390.0,62389.0,0.21025383]
[1728834914681,0.002819,62390.0,62389.0,0.37053783]
[1728834915324,0.002819,62390.0,62389.0,0.4186665]
[1728834915548,0.002819,62390.0,62389.0,0.37053783]
[1728834918122,0.002819,62390.0,62389.0,0.21025383]
[1728834920613,0.002819,62390.0,62389.0,0.21025422]
[1728834922149,0.002819,62390.0,62389.0,0.41866859]
[1728834924387,0.002819,62390.0,62389.0,0.37053822]
[1728834924835,0.002819,62390.0,62389.0,0.21025422]
[1728834927927,0.238101,62390.0,62389.0,0.04903021]
[1728834928144,0.238101,62390.0,62389.0,0.04903112]
[1728834929667,0.432701,62390.0,62389.0,0.014]
[1728834938681,0.160302,62382.0,62381.0,0.001636]
[1728834938896,0.426402,62382.0,62381.0,0.001636]
[1728834940497,0.160302,62382.0,62381.0,0.001636]
[1728834940935,0.160302,62382.0,62381.0,0.014636]
[1728834947853,0.160301,62383.0,62382.0,0.023]
[1728834950137,0.160301,62383.0,62382.0,0.035]
[1728834956411,0.161119,62383.0,62382.0,0.035]
[1728834966946,0.161119,62383.0,62371.0,0.06422023]
[1728834966947,0.16031,62379.0,62378.0,0.023]
[1728834968286,0.16031,62379.0,62378.0,0.037]
[1728834973174,0.160308,62380.0,62378.0,0.037]
[1728834973384,0.160307,62380.0,62379.0,0.12809965]
[1728834974856,0.161307,62380.0,62379.0,0.12809965]
[1728834975293,0.160307,62380.0,62379.0,0.12809965]
[1728834975729,0.161307,62380.0,62379.0,0.14009965]
[1728834978319,0.161307,62380.0,62379.0,0.035]
[1728834978534,0.161307,62380.0,62379.0,0.14009965]
[1728834979614,0.161307,62380.0,62379.0,0.035]
[1728834979816,0.161307,62380.0,62379.0,0.14173565]
[1728834984406,0.410507,62380.0,62379.0,0.036636]
[1728834985988,0.333007,62380.0,62379.0,0.036636]
[1728834986224,0.161307,62380.0,62379.0,0.14173565]
[1728834988627,0.001,62380.0,62379.0,0.14173565]
[1728834988850,0.001,62380.0,62379.0,0.31033565]
[1728834991319,0.001819,62380.0,62379.0,0.31033565]
[1728834992045,0.001819,62380.0,62379.0,0.14173565]
[1728834993797,0.162126,62380.0,62379.0,0.14173565]
[1728834994500,0.001819,62380.0,62379.0,0.15377745]
[1728834998572,0.001819,62380.0,62379.0,0.15377771]
[1728834999056,0.001819,62380.0,62379.0,0.14173565]
[1728835000735,0.001819,62380.0,62379.0,0.15377754]
[1728835003208,0.001819,62380.0,62379.0,0.14173565]
[1728835003491,0.001819,62380.0,62379.0,0.15377745]
[1728835004209,0.162126,62380.0,62379.0,0.15377745]
[1728835004686,0.001819,62380.0,62379.0,0.15377745]
[1728835006864,0.001819,62380.0,62379.0,0.14173565]
[1728835007117,0.001819,62380.0,62379.0,0.0486783]
[1728835007118,0.162126,62380.0,62379.0,0.0486783]
[1728835008363,0.318226,62380.0,62379.0,0.0256783]
[1728835009401,0.318226,62380.0,62379.0,0.013636]
[1728835010121,0.399126,62380.0,62379.0,0.013636]
[1728835012862,0.42423152,62380.0,62379.0,0.013636]
[1728835013107,0.54036451,62380.0,62379.0,0.013636]
[1728835017112,0.399126,62380.0,62379.0,0.013636]
[1728835021594,0.162126,62380.0,62379.0,0.013636]
[1728835024033,0.162126,62380.0,62379.0,0.11873565]
[1728835026704,0.162126,62380.0,62379.0,0.026636]
[1728835027385,0.34273014,62380.0,62379.0,0.026636]
[1728835027636,0.380926,62380.0,62379.0,0.026636]
[1728835029859,0.300626,62380.0,62379.0,0.026636]
[1728835031087,0.162126,62380.0,62379.0,0.026636]
[1728835032827,0.187233,62380.0,62379.0,0.026636]
[1728835034897,0.20223796,62380.0,62379.0,0.026636]
[1728835036114,0.54384446,62380.0,62379.0,0.026636]
[1728835036373,0.6909486,62380.0,62379.0,0.026636]
[1728835036871,0.94564011,62380.0,62379.0,0.026636]
[1728835037115,0.8075327,62380.0,62379.0,0.014636]
[1728835037354,0.8075327,62380.0,62379.0,0.016636]
[1728835037355,0.92753679,62380.0,62379.0,0.016636]
[1728835037866,0.8065327,62380.0,62379.0,0.003636]
[1728835038116,0.8075327,62380.0,62379.0,0.014636]
[1728835038355,0.88745911,62380.0,62379.0,0.001636]
[1728835038581,0.8065323,62380.0,62379.0,0.001636]
[1728835038816,0.8075323,62380.0,62379.0,0.007636]
[1728835039074,0.92753639,62380.0,62379.0,0.007636]
[1728835039311,0.92742533,62380.0,62379.0,0.007636]
[1728835039814,0.90531833,62380.0,62379.0,0.007636]
[1728835040059,0.6666188,62380.0,62379.0,0.007636]
[1728835040286,0.5798715,62380.0,62379.0,0.007636]
[1728835040754,0.50793056,62380.0,62379.0,0.007636]
[1728835041014,0.66754473,62380.0,62379.0,0.007636]
[1728835041263,0.66930027,62380.0,62379.0,0.007636]
[1728835041735,0.82898314,62380.0,62379.0,0.007636]
[1728835041983,0.6692944,62380.0,62379.0,0.007636]
[1728835042228,0.82897289,62380.0,62379.0,0.007636]
[1728835042489,0.82892691,62380.0,62379.0,0.007636]
[1728835042710,0.94994276,62380.0,62379.0,0.007636]
[1728835043824,0.85403596,62380.0,62379.0,0.007636]
[1728835044272,0.94994276,62380.0,62379.0,0.007636]
[1728835045476,0.9920469,62380.0,62379.0,0.007636]
[1728835046217,0.9940469,62380.0,62379.0,0.007636]
[1728835046456,0.9920469,62380.0,62379.0,0.007636]
[1728835047488,0.94994276,62380.0,62379.0,0.007636]
[1728835048680,0.95194276,62380.0,62379.0,0.007636]
[1728835048914,0.85603596,62380.0,62379.0,0.007636]
[1728835049175,0.37242765,62372.0,62371.0,0.001638]
[1728835049456,0.6249687,62372.0,62371.0,0.001638]
[1728835049723,0.91197901,62372.0,62371.0,0.001638]
[1728835049970,0.91397901,62372.0,62371.0,0.001638]
[1728835050203,0.79412639,62372.0,62371.0,0.001638]
[1728835050452,1.03320518,62372.0,62371.0,0.001638]
[1728835050699,0.91339196,62372.0,62371.0,0.006638]
[1728835050932,0.91139196,62372.0,62371.0,0.006638]
[1728835051185,0.91139196,62372.0,62371.0,1e-06]
[1728835051186,0.91300628,62372.0,62371.0,1e-06]
[1728835051660,1.1534275,62372.0,62371.0,1e-06]
[1728835051895,0.91200628,62372.0,62371.0,1e-06]
[1728835052123,0.91200628,62372.0,62367.0,0.001636]
[1728835052124,0.470938,62368.0,62367.0,0.001636]
[1728835052355,0.5577795,62368.0,62367.0,0.001636]
[1728835052601,0.53383504,62368.0,62367.0,0.001636]
[1728835052833,0.55893026,62368.0,62367.0,0.001636]
[1728835053831,0.51102341,62368.0,62367.0,0.001636]
[1728835054741,0.51202341,62368.0,62367.0,0.001636]
[1728835054966,0.67339312,62368.0,62367.0,0.001636]
[1728835055429,0.67239312,62368.0,62367.0,0.001636]
[1728835055644,0.67639312,62368.0,62367.0,0.001636]
[1728835056549,0.67639088,62368.0,62367.0,0.001636]
[1728835059783,0.65127662,62368.0,62367.0,0.001636]
[1728835060237,0.65128116,62368.0,62367.0,0.001636]
[1728835061227,0.63630771,62368.0,62367.0,0.001636]
[1728835062641,0.65128657,62368.0,62367.0,0.001636]
[1728835062870,0.67640049,62368.0,62367.0,0.001636]
[1728835068615,0.66142163,62368.0,62367.0,0.001636]
[1728835069481,0.67642294,62368.0,62367.0,0.001636]
[1728835069722,0.65130902,62368.0,62367.0,0.001636]
[1728835070596,0.63630771,62368.0,62367.0,0.001636]
[1728835076333,0.68427004,62368.0,62367.0,0.001636]
[1728835076984,0.63630771,62368.0,62367.0,0.001636]
[1728835077206,0.68427004,62368.0,62367.0,0.001636]
[1728835077428,0.63630771,62368.0,62367.0,0.001636]
[1728835077652,0.68429511,62368.0,62367.0,0.001636]
[1728835078329,0.63630771,62368.0,62367.0,0.001636]
[1728835079236,0.70830064,62368.0,62367.0,0.001636]
[1728835080383,0.63630771,62368.0,62367.0,0.001636]
[1728835080838,0.70832931,62368.0,62367.0,0.001636]
[1728835081473,0.63630771,62368.0,62367.0,0.001636]
[1728835081688,0.70834406,62368.0,62367.0,0.001636]
[1728835081913,0.79507545,62368.0,62367.0,0.001636]
[1728835082156,0.70834492,62368.0,62367.0,0.001636]
[1728835082416,0.79517043,62368.0,62367.0,0.001636]
[1728835082635,0.63630771,62368.0,62367.0,0.001636]
[1728835082856,0.82030283,62368.0,62367.0,0.001636]
[1728835083080,0.66142161,62368.0,62367.0,0.001636]
[1728835083323,0.91633895,62368.0,62367.0,0.001636]
[1728835084482,0.82029048,62368.0,62367.0,0.001636]
[1728835084982,0.91636973,62368.0,62367.0,0.001636]
[1728835085993,0.91634548,62368.0,62367.0,0.001636]
[1728835086212,0.8202622,62368.0,62367.0,0.001636]
[1728835086431,0.91635291,62368.0,62367.0,0.001636]
[1728835086852,0.8202622,62368.0,62367.0,0.001636]
[1728835087078,0.91634976,62368.0,62367.0,0.001636]
[1728835087299,0.8202622,62368.0,62367.0,0.001636]
[1728835088178,0.9403663,62368.0,62367.0,0.001636]
[1728835089259,0.8202622,62368.0,62367.0,0.001636]
[1728835089694,0.7951483,62368.0,62367.0,0.001636]
[1728835092810,0.82026226,62368.0,62367.0,0.001636]
[1728835095193,0.96438718,62368.0,62367.0,0.001636]
[1728835095822,0.82026226,62368.0,62367.0,0.001636]
[1728835096731,0.96438718,62368.0,62367.0,0.001636]
[1728835099831,0.93927322,62368.0,62367.0,0.001636]
[1728835101099,0.86127322,62368.0,62367.0,0.001636]
[1728835108209,0.57230351,62368.0,62367.0,0.001636]
[1728835109100,0.57276447,62368.0,62367.0,0.001636]
[1728835109777,0.56776447,62368.0,62367.0,0.001636]
[1728835110035,0.57276447,62368.0,62367.0,0.001636]
[1728835110249,0.42834955,62368.0,62367.0,0.001636]
[1728835110509,0.50016548,62368.0,62367.0,0.001636]
[1728835110954,0.42334955,62368.0,62367.0,0.001636]
[1728835111179,0.44370386,62368.0,62367.0,0.200636]
[1728835111405,0.164338,62368.0,62367.0,0.200636]
[1728835111883,0.160338,62368.0,62367.0,0.200636]
[1728835112102,0.160338,62368.0,62367.0,0.223636]
[1728835112350,0.164338,62368.0,62367.0,0.223636]
[1728835112571,0.165338,62368.0,62367.0,0.223636]
[1728835112795,0.161338,62368.0,62367.0,0.223636]
[1728835113249,0.162338,62368.0,62367.0,0.233636]
[1728835113964,0.163338,62368.0,62367.0,0.237636]